fUST/lending_fUST_20250430
["ID","MTS","AMOUNT","RATE_DAILY","PERIOD"]
[359382935,1745965840996,-439.33,0.00027945,2]
[359382937,1745965841006,-400.0,0.00027945,2]
[359382939,1745965841015,-436.46,0.00027945,2]
[359382941,1745965841025,-400.0,0.00027945,2]
[359382943,1745965841034,-400.0,0.00027945,2]
[359382944,1745965841044,-1554.49,0.00027945,2]
[359382946,1745965841054,-1199.73,0.00027945,2]
[359382948,1745965841063,-400.0,0.00027945,2]
[359382950,1745965841073,-2606.96,0.00027945,2]
[359382952,1745965841082,-400.0,0.00027945,2]
[359382954,1745965841092,-550.32,0.00027945,2]
[359382956,1745965841102,-400.0,0.00027945,2]
[359382958,1745965841111,-1329.8,0.00027945,2]
[359382960,1745965841121,-5657.09,0.00027945,2]
[359382962,1745965841131,-2328.55,0.00027945,2]
[359382964,1745965841141,-1398.53,0.00027945,2]
[359382966,1745965841150,-516.76,0.00027945,2]
[359382968,1745965841160,-400.0,0.00027945,2]
[359382969,1745965841170,-500.0,0.00027973,5]
[359382971,1745965841179,-500.0,0.00027973,5]
[359382973,1745965841189,-500.0,0.00027973,5]
[359382975,1745965841198,-500.70145363,0.00027973,5]
[359382977,1745965841208,-500.0,0.00027973,5]
[359382979,1745965841217,-500.0,0.00027973,5]
[359382981,1745965841227,-500.0,0.00027973,5]
[359382983,1745965841237,-502.39372866,0.00027973,5]
[359382985,1745965841248,-2781.4,0.00027982,2]
[359382987,1745965841259,-2781.4,0.00027982,2]
[359382988,1745965841269,-314.46164946,0.00027982,2]
[359382990,1745965841280,-400.0,0.00028101,2]
[359382993,1745965841290,-400.0,0.00028101,2]
[359382994,1745965841300,-400.0,0.00028101,2]
[359382996,1745965841310,-400.0,0.00028101,2]
[359382998,1745965841319,-418.65,0.00028101,2]
[359383000,1745965841330,-478.04,0.00028101,2]
[359383002,1745965841339,-275.42936235,0.00028101,2]
[359383004,1745965841349,-400.0,0.00028101,2]
[359383006,1745965841358,-400.0,0.00028101,2]
[359383008,1745965841368,-400.0,0.00028101,2]
[359383010,1745965841377,-463.14,0.00028101,2]
[359383012,1745965841386,-963.49,0.00028101,2]
[359383013,1745965841396,-153.386195,0.00028101,7]
[359383014,1745965841406,-400.0,0.00028101,2]
[359383015,1745965841415,-400.0,0.00028101,2]
[359383016,1745965841425,-465.12,0.00028101,2]
[359383018,1745965841435,-400.0,0.00028101,2]
[359383020,1745965841445,-806.81,0.00028101,2]
[359383022,1745965841454,-400.0,0.00028101,2]
[359383023,1745965841464,-400.0,0.00028101,2]
[359383025,1745965841474,-400.0,0.00028101,2]
[359383027,1745965841484,-451.9,0.00028101,2]
[359383029,1745965841494,-400.0,0.00028101,2]
[359383031,1745965841503,-400.0,0.00028101,2]
[359383033,1745965841513,-400.0,0.00028101,2]
[359383035,1745965841523,-400.0,0.00028101,2]
[359383037,1745965841533,-410.61,0.00028101,2]
[359383039,1745965841543,-400.0,0.00028101,2]
[359383041,1745965841552,-1263.83,0.00028101,2]
[359383042,1745965841562,-504.26,0.00028101,2]
[359383044,1745965841572,-400.0,0.00028101,2]
[359383045,1745965841583,-400.0,0.00028101,2]
[359383046,1745965841593,-400.0,0.00028101,2]
[359383047,1745965841603,-400.0,0.00028101,2]
[359383048,1745965841613,-453.97,0.00028101,2]
[359383049,1745965841623,-151.0,0.00028101,7]
[359383050,1745965841633,-151.0,0.00028101,7]
[359383051,1745965841644,-1383.41,0.00028101,2]
[359383052,1745965841654,-400.0,0.00028101,2]
[359383053,1745965841664,-151.0,0.00028101,7]
[359383054,1745965841673,-512.01,0.00028101,2]
[359383055,1745965841683,-400.0,0.00028101,2]
[359383056,1745965841693,-728.24,0.00028101,2]
[359383057,1745965841703,-400.0,0.00028101,2]
[359383058,1745965841714,-188.08943679,0.00028101,2]
[359383059,1745965841725,-1422.9,0.00028101,2]
[359383060,1745965841736,-2294.8,0.00028101,2]
[359383061,1745965841746,-151.0,0.00028101,7]
[359383062,1745965841755,-409.84,0.00028101,2]
[359383063,1745965841764,-937.84,0.00028101,2]
[359383064,1745965841774,-1024.45,0.00028101,2]
[359383065,1745965841786,-1402.96954215,0.00028101,2]
[359383066,1745965841802,-1381.64045785,0.00028101,2]
[359383067,1745965841811,-501.16,0.00028101,2]
[359383068,1745965841822,-1202.0,0.00028101,2]
[359383069,1745965841831,-194.06215877,0.00028101,2]
[359383070,1745965842085,-525.11784123,0.00028101,2]
[359383071,1745965842094,-151.0,0.00028101,7]
[359383072,1745965842104,-1358.32,0.00028101,2]
[359383073,1745965842114,-4215.29,0.00028101,2]
[359383074,1745965842123,-153.151304,0.00028101,7]
[359383075,1745965842132,-489.54,0.00028101,2]
[359383076,1745965842142,-400.0,0.00028101,2]
[359383077,1745965842151,-314.46164946,0.00028119,2]
[359383078,1745965842161,-211.63333258,0.00028209,2]
[359383079,1745965842170,-2781.3,0.00028209,2]
[359383080,1745965842179,-2781.3,0.00028209,2]
[359383081,1745965842188,-2781.3,0.00028209,2]
[359383082,1745965842198,-2781.3,0.00028209,2]
[359383083,1745965842208,-400.0,0.00028218,2]
[359383084,1745965842219,-528.76389003,0.00028218,2]
[359383085,1745965842230,-167.02455308,0.00028219,2]
[359383086,1745965842240,-286.26894148,0.00028219,2]
[359383087,1745965842250,-400.0,0.00028219,2]
[359383088,1745965842260,-400.0,0.00028219,2]
[359383089,1745965842269,-451.98,0.00028219,2]
[359383090,1745965842279,-400.0,0.00028219,2]
[359383091,1745965842288,-400.0,0.00028219,2]
[359383092,1745965842297,-400.0,0.00028219,2]
[359383094,1745965842307,-438.8,0.00028219,2]
[359383096,1745965842316,-400.0,0.00028219,2]
[359383097,1745965842326,-400.0,0.00028219,2]
[359383098,1745965842335,-400.0,0.00028219,2]
[359383099,1745965842344,-400.0,0.00028219,2]
[359383100,1745965842353,-487.76,0.00028219,2]
[359383101,1745965842363,-400.0,0.00028219,2]
[359383103,1745965842372,-616.52,0.00028219,2]
[359383104,1745965842381,-757.11,0.00028219,2]
[359383105,1745965842391,-400.0,0.00028219,2]
[359383106,1745965842400,-599.52,0.00028219,2]
[359383107,1745965842410,-49.21127114,0.00028219,2]
[359383126,1745965843814,-113.73937592,0.00027397,2]
[359383127,1745965843827,-286.26062408,0.00027397,2]
[359383128,1745965843837,-400.0,0.00027397,2]
[359383129,1745965843847,-400.0,0.00027671,2]
[359383130,1745965843856,-400.0,0.00027945,2]
[359383131,1745965843865,-350.78872886,0.00028219,2]
[359383132,1745965843876,-400.0,0.00028219,2]
[359383133,1745965843885,-400.0,0.00028219,2]
[359383134,1745965843898,-400.0,0.00028219,2]
[359383135,1745965843909,-400.0,0.00028219,2]
[359383136,1745965843919,-400.0,0.00028219,2]
[359383137,1745965843929,-1130.55,0.00028219,2]
[359383138,1745965843938,-400.0,0.00028219,2]
[359383139,1745965843950,-871.7,0.00028219,2]
[359383140,1745965843960,-400.0,0.00028219,2]
[359383141,1745965843970,-400.0,0.00028219,2]
[359383142,1745965843980,-400.0,0.00028219,2]
[359383143,1745965843990,-151.0,0.00028219,7]
[359383144,1745965844000,-157.04520484,0.00028219,2]
[359383145,1745965844010,-2618.11,0.00028219,2]
[359383146,1745965844020,-400.0,0.00028219,2]
[359383147,1745965844030,-151.0,0.00028219,7]
[359383148,1745965844040,-418.78,0.00028219,2]
[359383149,1745965844049,-151.0,0.00028219,7]
[359383150,1745965844059,-296.092333,0.00028219,7]
[359383151,1745965844068,-400.0,0.00028219,2]
[359383152,1745965844078,-400.0,0.00028219,2]
[359383153,1745965844088,-934.01,0.00028219,2]
[359383154,1745965844098,-400.0,0.00028219,2]
[359383155,1745965844108,-400.0,0.00028219,2]
[359383157,1745965844118,-151.0,0.00028219,7]
[359383158,1745965844129,-151.0,0.00028219,7]
[359383159,1745965844138,-400.0,0.00028219,2]
[359383160,1745965844149,-1118.61,0.00028219,2]
[359383161,1745965844159,-405.75,0.00028219,2]
[359383162,1745965844169,-151.0,0.00028219,7]
[359383163,1745965844179,-400.0,0.00028219,2]
[359383164,1745965844189,-400.0,0.00028219,2]
[359383165,1745965844198,-730.98,0.00028219,2]
[359383166,1745965844209,-151.0,0.00028219,7]
[359383167,1745965844219,-400.0,0.00028219,2]
[359383168,1745965844229,-400.0,0.00028219,2]
[359383169,1745965844240,-151.0,0.00028219,7]
[359383170,1745965844250,-400.0,0.00028219,2]
[359383171,1745965844260,-400.0,0.00028219,2]
[359383172,1745965844270,-566.98,0.00028219,2]
[359383173,1745965844279,-400.0,0.00028219,2]
[359383174,1745965844289,-840.73483787,0.00028219,7]
[359383175,1745965844299,-893.77,0.00028219,2]
[359383176,1745965844309,-731.76,0.00028219,2]
[359383177,1745965844320,-400.0,0.00028219,2]
[359383178,1745965844331,-1275.51,0.00028219,2]
[359383179,1745965844341,-151.0,0.00028219,2]
[359383180,1745965844352,-445.84,0.00028219,2]
[359383181,1745965844362,-400.0,0.00028219,2]
[359383182,1745965844371,-1753.72,0.00028219,2]
[359383183,1745965844381,-436.66,0.00028219,2]
[359383184,1745965844392,-445.02,0.00028219,2]
[359383185,1745965844401,-153.514565,0.00028219,7]
[359383186,1745965844411,-153.514565,0.00028219,7]
[359383187,1745965844421,-672.19,0.00028219,2]
[359383188,1745965844431,-1367.8,0.00028219,2]
[359383189,1745965844442,-151.0,0.00028219,7]
[359383190,1745965844451,-1033.02,0.00028219,2]
[359383191,1745965844461,-743.45,0.00028219,2]
[359383192,1745965844472,-151.0,0.00028219,7]
[359383193,1745965844483,-713.45,0.00028219,2]
[359383194,1745965844493,-3764.84,0.00028219,2]
[359383195,1745965844502,-402.04,0.00028219,2]
[359383196,1745965844512,-3094.27,0.00028219,2]
[359383197,1745965844521,-400.0,0.00028219,2]
[359383198,1745965844531,-417.66,0.00028219,2]
[359383199,1745965844541,-400.0,0.00028219,2]
[359383200,1745965844551,-400.0,0.00028219,2]
[359383201,1745965844561,-774.0,0.00028219,2]
[359383202,1745965844571,-1191.57,0.00028219,2]
[359383203,1745965844581,-948.03,0.00028219,2]
[359383204,1745965844591,-400.0,0.00028219,2]
[359383205,1745965844601,-151.0,0.00028219,7]
[359383206,1745965844611,-151.0,0.00028219,7]
[359383207,1745965844621,-1212.7,0.00028219,2]
[359383208,1745965844631,-829.03,0.00028219,2]
[359383209,1745965844640,-151.0,0.00028219,7]
[359383210,1745965844651,-618.67,0.00028219,2]
[359383211,1745965844661,-2209.47,0.00028219,2]
[359383212,1745965844671,-400.0,0.00028219,2]
[359383213,1745965844680,-779.7,0.00028219,2]
[359383214,1745965844690,-400.0,0.00028219,2]
[359383215,1745965844700,-400.0,0.00028219,2]
[359383216,1745965844710,-574.83,0.00028219,2]
[359383217,1745965844720,-1051.35,0.00028219,2]
[359383218,1745965844730,-2169.26,0.00028219,2]
[359383219,1745965844740,-400.0,0.00028219,2]
[359383220,1745965844750,-400.0,0.00028219,2]
[359383221,1745965844759,-400.0,0.00028219,2]
[359383222,1745965844769,-817.36,0.00028219,2]
[359383223,1745965844779,-962.08,0.00028219,2]
[359383224,1745965844792,-776.26,0.00028219,2]
[359383225,1745965844802,-400.0,0.00028219,2]
[359383226,1745965844811,-400.0,0.00028219,2]
[359383227,1745965844821,-400.0,0.00028219,2]
[359383228,1745965844831,-400.0,0.00028219,2]
[359383229,1745965844840,-2082.61,0.00028219,2]
[359383230,1745965844849,-400.0,0.00028219,2]
[359383231,1745965844859,-400.0,0.00028219,2]
[359383232,1745965844868,-1118.47,0.00028219,2]
[359383233,1745965844878,-151.0,0.00028219,7]
[359383234,1745965844888,-2991.06,0.00028219,2]
[359383235,1745965844899,-2334.65,0.00028219,2]
[359383236,1745965844908,-400.0,0.00028219,2]
[359383237,1745965844918,-439.33,0.00028219,2]
[359383238,1745965844927,-400.0,0.00028219,2]
[359383239,1745965844937,-436.46,0.00028219,2]
[359383240,1745965844947,-400.0,0.00028219,2]
[359383241,1745965844956,-400.0,0.00028219,2]
[359383242,1745965844966,-1554.49,0.00028219,2]
[359383243,1745965844976,-1199.73,0.00028219,2]
[359383244,1745965844987,-400.0,0.00028219,2]
[359383245,1745965844997,-2606.96,0.00028219,2]
[359383246,1745965845007,-400.0,0.00028219,2]
[359383247,1745965845016,-550.32,0.00028219,2]
[359383248,1745965845026,-400.0,0.00028219,2]
[359383249,1745965845036,-151.0,0.00028219,7]
[359383250,1745965845046,-1329.8,0.00028219,2]
[359383251,1745965845056,-5657.09,0.00028219,2]
[359383252,1745965845065,-2328.55,0.00028219,2]
[359383253,1745965845074,-1398.53,0.00028219,2]
[359383254,1745965845083,-516.76,0.00028219,2]
[359383255,1745965845093,-205.02503071,0.00028219,2]
[359383256,1745965845102,-223.83,0.00028219,2]
[359383257,1745965845112,-500.0,0.00028273,5]
[359383258,1745965845121,-500.0,0.00028273,5]
[359383259,1745965845131,-500.0,0.00028273,5]
[359383260,1745965845140,-160.0,0.00028348,7]
[359383261,1745965845150,-160.0,0.00028348,7]
[359383262,1745965845159,-2596.53974516,0.00028348,7]
[359383263,1745965845169,-12589.54207618,0.00028348,7]
[359383264,1745965845178,-160.0,0.00028348,7]
[359383266,1745965845188,-400.0,0.00028375,2]
[359383267,1745965845198,-400.0,0.00028375,2]
[359383268,1745965845207,-400.0,0.00028375,2]
[359383269,1745965845218,-400.0,0.00028375,2]
[359383270,1745965845228,-418.65,0.00028375,2]
[359383271,1745965845238,-478.04,0.00028375,2]
[359383272,1745965845248,-400.0,0.00028375,2]
[359383273,1745965845257,-400.0,0.00028375,2]
[359383275,1745965845267,-400.0,0.00028375,2]
[359383276,1745965845277,-463.14,0.00028375,2]
[359383278,1745965845287,-963.49,0.00028375,2]
[359383279,1745965845297,-400.0,0.00028375,2]
[359383280,1745965845307,-400.0,0.00028375,2]
[359383281,1745965845317,-136.88946779,0.00028375,2]
[359383286,1745965846722,-328.23053221,0.00028375,2]
[359383287,1745965846731,-400.0,0.00028375,2]
[359383288,1745965846741,-806.81,0.00028375,2]
[359383289,1745965846750,-400.0,0.00028375,2]
[359383290,1745965846759,-151.0,0.00028375,7]
[359383291,1745965846769,-400.0,0.00028375,2]
[359383292,1745965846779,-451.9,0.00028375,2]
[359383293,1745965846791,-400.0,0.00028375,2]
[359383294,1745965846801,-400.0,0.00028375,2]
[359383295,1745965846810,-400.0,0.00028375,2]
[359383296,1745965846821,-410.61,0.00028375,2]
[359383297,1745965846830,-400.0,0.00028375,2]
[359383298,1745965846839,-151.0,0.00028375,7]
[359383299,1745965846849,-1263.83,0.00028375,2]
[359383300,1745965846859,-400.0,0.00028375,2]
[359383301,1745965846868,-400.0,0.00028375,2]
[359383302,1745965846878,-400.0,0.00028375,2]
[359383303,1745965846888,-453.97,0.00028375,2]
[359383304,1745965846898,-151.0,0.00028375,7]
[359383305,1745965846907,-1383.41,0.00028375,2]
[359383306,1745965846917,-400.0,0.00028375,2]
[359383307,1745965847051,-512.01,0.00028375,2]
[359383308,1745965847061,-400.0,0.00028375,2]
[359383309,1745965847071,-728.24,0.00028375,2]
[359383310,1745965847080,-400.0,0.00028375,2]
[359383311,1745965847090,-151.0,0.00028375,7]
[359383312,1745965847099,-1422.9,0.00028375,2]
[359383313,1745965847109,-404.03000979,0.00028375,2]
[359383314,1745965847249,-1890.76999021,0.00028375,2]
[359383315,1745965847259,-409.84,0.00028375,2]
[359383316,1745965847269,-937.84,0.00028375,2]
[359383317,1745965847279,-1024.45,0.00028375,2]
[359383318,1745965847289,-2784.61,0.00028375,2]
[359383319,1745965847299,-501.16,0.00028375,2]
[359383320,1745965847309,-1202.0,0.00028375,2]
[359383321,1745965847318,-719.18,0.00028375,2]
[359383322,1745965847329,-137.88106526,0.00028375,2]
[359383323,1745965847560,-498.91,0.00027397,2]
[359383324,1745965847570,-400.0,0.00027397,2]
[359383325,1745965847581,-400.0,0.00027397,2]
[359383326,1745965847591,-400.0,0.00027553,2]
[359383327,1745965847601,-400.0,0.0002767,2]
[359383328,1745965847610,-400.0,0.00027944,2]
[359383329,1745965847620,-331.35,0.00028218,2]
[359383330,1745965847895,-68.65,0.00028218,2]
[359383331,1745965847906,-1220.43893474,0.00028375,2]
[359383332,1745965847915,-255.79233926,0.00028375,2]
[359383333,1745965847928,-3959.49766074,0.00028375,2]
[359383334,1745965847937,-489.54,0.00028375,2]
[359383335,1745965847945,-1013.809181,0.00028492,2]
[359383336,1745965847955,-400.0,0.00028492,2]
[359383337,1745965847965,-400.0,0.00028492,2]
[359383338,1745965847974,-151.0,0.00028493,7]
[359383339,1745965847984,-151.0,0.00028493,7]
[359383340,1745965847995,-151.0,0.00028493,7]
[359383341,1745965848005,-400.0,0.00028493,2]
[359383342,1745965848015,-400.0,0.00028493,2]
[359383343,1745965848025,-151.0,0.00028493,7]
[359383344,1745965848035,-451.98,0.00028493,2]
[359383345,1745965848044,-400.0,0.00028493,2]
[359383346,1745965848054,-400.0,0.00028493,2]
[359383347,1745965848063,-400.0,0.00028493,2]
[359383348,1745965848073,-438.8,0.00028493,2]
[359383349,1745965848082,-400.0,0.00028493,2]
[359383350,1745965848092,-400.0,0.00028493,2]
[359383351,1745965848101,-151.0,0.00028493,7]
[359383352,1745965848111,-151.0,0.00028493,7]
[359383353,1745965848120,-400.0,0.00028493,2]
[359383354,1745965848130,-400.0,0.00028493,2]
[359383355,1745965848140,-487.76,0.00028493,2]
[359383356,1745965848150,-400.0,0.00028493,2]
[359383357,1745965848159,-616.52,0.00028493,2]
[359383358,1745965848169,-757.11,0.00028493,2]
[359383359,1745965848179,-400.0,0.00028493,2]
[359383360,1745965848188,-151.0,0.00028493,7]
[359383361,1745965848198,-151.0,0.00028493,7]
[359383362,1745965848207,-599.52,0.00028493,2]
[359383363,1745965848217,-400.0,0.00028493,2]
[359383364,1745965848226,-400.0,0.00028493,2]
[359383365,1745965848235,-151.0,0.00028493,7]
[359383366,1745965848245,-400.0,0.00028493,2]
[359383367,1745965848254,-400.0,0.00028493,2]
[359383368,1745965848265,-400.0,0.00028493,2]
[359383369,1745965848274,-400.0,0.00028493,2]
[359383370,1745965848283,-1130.55,0.00028493,2]
[359383371,1745965848293,-151.0,0.00028493,7]
[359383372,1745965848302,-871.7,0.00028493,2]
[359383373,1745965848312,-400.0,0.00028493,2]
[359383374,1745965848321,-400.0,0.00028493,2]
[359383375,1745965848331,-400.0,0.00028493,2]
[359383376,1745965848340,-193.865721,0.00028493,7]
[359383377,1745965848350,-193.865721,0.00028493,7]
[359383378,1745965848360,-2618.11,0.00028493,2]
[359383379,1745965848369,-400.0,0.00028493,2]
[359383380,1745965848379,-418.78,0.00028493,2]
[359383381,1745965848388,-151.0,0.00028493,7]
[359383382,1745965848399,-400.0,0.00028493,2]
[359383383,1745965848408,-400.0,0.00028493,2]
[359383384,1745965848418,-934.01,0.00028493,2]
[359383385,1745965848428,-400.0,0.00028493,2]
[359383386,1745965848439,-400.0,0.00028493,2]
[359383387,1745965848449,-151.0,0.00028493,7]
[359383388,1745965848458,-1118.61,0.00028493,2]
[359383389,1745965848468,-405.75,0.00028493,2]
[359383390,1745965848478,-151.0,0.00028493,7]
[359383391,1745965848488,-400.0,0.00028493,2]
[359383392,1745965848498,-400.0,0.00028493,2]
[359383393,1745965848508,-730.98,0.00028493,2]
[359383394,1745965848519,-400.0,0.00028493,2]
[359383395,1745965848528,-151.0,0.00028493,7]
[359383396,1745965848538,-400.0,0.00028493,2]
[359383397,1745965848548,-400.0,0.00028493,2]
[359383398,1745965848558,-400.0,0.00028493,2]
[359383399,1745965848568,-566.98,0.00028493,2]
[359383400,1745965848579,-893.77,0.00028493,2]
[359383401,1745965848589,-731.76,0.00028493,2]
[359383402,1745965848599,-1275.51,0.00028493,2]
[359383403,1745965848609,-151.0,0.00028493,2]
[359383404,1745965848619,-445.84,0.00028493,2]
[359383405,1745965848630,-509.64,0.00028493,2]
[359383406,1745965848640,-1753.72,0.00028493,2]
[359383407,1745965848650,-445.02,0.00028493,2]
[359383408,1745965848660,-153.514565,0.00028493,7]
[359383409,1745965848671,-153.514565,0.00028493,7]
[359383410,1745965848681,-672.19,0.00028493,2]
[359383411,1745965848691,-1367.8,0.00028493,2]
[359383412,1745965848701,-151.0,0.00028493,7]
[359383413,1745965848711,-1033.02,0.00028493,2]
[359383414,1745965848721,-743.45,0.00028493,2]
[359383415,1745965848731,-151.0,0.00028493,7]
[359383416,1745965848740,-713.45,0.00028493,2]
[359383417,1745965848750,-3764.84,0.00028493,2]
[359383418,1745965848759,-402.04,0.00028493,2]
[359383419,1745965848768,-3094.27,0.00028493,2]
[359383420,1745965848778,-400.0,0.00028493,2]
[359383421,1745965848792,-417.66,0.00028493,2]
[359383422,1745965848801,-400.0,0.00028493,2]
[359383423,1745965848811,-400.0,0.00028493,2]
[359383424,1745965848820,-774.0,0.00028493,2]
[359383425,1745965848830,-1191.57,0.00028493,2]
[359383426,1745965848840,-948.03,0.00028493,2]
[359383427,1745965848849,-400.0,0.00028493,2]
[359383428,1745965848859,-151.0,0.00028493,7]
[359383429,1745965848868,-151.0,0.00028493,7]
[359383430,1745965848878,-1212.7,0.00028493,2]
[359383431,1745965848887,-829.03,0.00028493,2]
[359383432,1745965848897,-618.67,0.00028493,2]
[359383433,1745965848907,-2209.47,0.00028493,2]
[359383434,1745965848917,-400.0,0.00028493,2]
[359383435,1745965848927,-779.7,0.00028493,2]
[359383436,1745965848937,-400.0,0.00028493,2]
[359383437,1745965848947,-400.0,0.00028493,2]
[359383438,1745965848956,-574.83,0.00028493,2]
[359383439,1745965848966,-1051.35,0.00028493,2]
[359383440,1745965848975,-2169.26,0.00028493,2]
[359383441,1745965848984,-400.0,0.00028493,2]
[359383442,1745965848994,-400.0,0.00028493,2]
[359383443,1745965849003,-400.0,0.00028493,2]
[359383444,1745965849012,-817.36,0.00028493,2]
[359383445,1745965849022,-962.08,0.00028493,2]
[359383446,1745965849031,-776.26,0.00028493,2]
[359383447,1745965849040,-400.0,0.00028493,2]
[359383448,1745965849050,-400.0,0.00028493,2]
[359383449,1745965849059,-400.0,0.00028493,2]
[359383450,1745965849069,-400.0,0.00028493,2]
[359383451,1745965849079,-2082.61,0.00028493,2]
[359383452,1745965849088,-400.0,0.00028493,2]
[359383453,1745965849098,-400.0,0.00028493,2]
[359383454,1745965849108,-1118.47,0.00028493,2]
[359383455,1745965849117,-151.0,0.00028493,7]
[359383456,1745965849128,-2991.06,0.00028493,2]
[359383457,1745965849138,-2334.65,0.00028493,2]
[359383458,1745965849148,-400.0,0.00028493,2]
[359383459,1745965849157,-439.33,0.00028493,2]
[359383460,1745965849168,-400.0,0.00028493,2]
[359383461,1745965849178,-436.46,0.00028493,2]
[359383462,1745965849190,-400.0,0.00028493,2]
[359383463,1745965849199,-400.0,0.00028493,2]
[359383464,1745965849209,-1554.49,0.00028493,2]
[359383465,1745965849219,-1199.73,0.00028493,2]
[359383466,1745965849228,-400.0,0.00028493,2]
[359383467,1745965849238,-2606.96,0.00028493,2]
[359383468,1745965849247,-400.0,0.00028493,2]
[359383469,1745965849256,-550.32,0.00028493,2]
[359383470,1745965849265,-400.0,0.00028493,2]
[359383471,1745965849274,-151.0,0.00028493,7]
[359383472,1745965849284,-1329.8,0.00028493,2]
[359383473,1745965849294,-5657.09,0.00028493,2]
[359383474,1745965849304,-2328.55,0.00028493,2]
[359383475,1745965849314,-1398.53,0.00028493,2]
[359383476,1745965849323,-516.76,0.00028493,2]
[359383477,1745965849333,-151.0,0.000285,13]
[359383478,1745965849343,-151.0,0.000285,14]
[359383479,1745965849353,-151.0,0.000286,18]
[359383480,1745965849363,-157.2502195,0.0002863,30]
[359383481,1745965849372,-400.0,0.00028649,2]
[359383482,1745965849381,-400.0,0.00028649,2]
[359383483,1745965849391,-400.0,0.00028649,2]
[359383484,1745965849400,-400.0,0.00028649,2]
[359383485,1745965849410,-418.65,0.00028649,2]
[359383486,1745965849419,-478.04,0.00028649,2]
[359383487,1745965849429,-400.0,0.00028649,2]
[359383488,1745965849438,-196.56527043,0.00028649,2]
[359383489,1745965849448,-400.0,0.00028649,2]
[359383490,1745965849457,-463.14,0.00028649,2]
[359383491,1745965849466,-963.49,0.00028649,2]
[359383492,1745965849476,-400.0,0.00028649,2]
[359383493,1745965849486,-400.0,0.00028649,2]
[359383494,1745965849496,-465.12,0.00028649,2]
[359383495,1745965849505,-516.84431369,0.00028649,2]
[359383496,1745965849515,-806.81,0.00028649,2]
[359383497,1745965849524,-400.0,0.00028649,2]
[359383498,1745965849534,-151.0,0.00028649,7]
[359383499,1745965849543,-400.0,0.00028649,2]
[359383500,1745965849685,-400.0,0.00028649,2]
[359383501,1745965849695,-400.0,0.00028649,2]
[359383502,1745965849706,-206.78033622,0.00028649,2]
[359383503,1745965849716,-410.61,0.00028649,2]
[359383504,1745965849726,-400.0,0.00028649,2]
[359383505,1745965849736,-151.0,0.00028649,7]
[359383506,1745965849746,-1263.83,0.00028649,2]
[359383507,1745965849756,-400.0,0.00028649,2]
[359383508,1745965849766,-400.0,0.00028649,2]
[359383509,1745965849776,-400.0,0.00028649,2]
[359383510,1745965849790,-453.97,0.00028649,2]
[359383511,1745965849800,-1383.41,0.00028649,2]
[359383512,1745965849811,-400.0,0.00028649,2]
[359383513,1745965849820,-512.01,0.00028649,2]